[Event "GER-ch Youth-U10 2022"]
[Site "Willingen"]
[Date "2022.06.06"]
[Round "4.3"]
[White "Zimmer, Tim"]
[Black "Stehning, Toni"]
[Result "0-1"]
[ECO "C54"]
[WhiteElo "1164"]
[BlackElo "1097"]
[Annotator "NA RC COMBH"]
[PlyCount "92"]
[EventDate "2022.06.05"]
[EventType "swiss"]
[EventRounds "11"]
[EventCountry "GER"]
[SourceTitle "playchess.com"]
[Source "ChessBase"]
[SourceQuality "1"]
[TimeControl "40/4500+30:900+30"]

1. e4 {[%emt 0:00:02]} e5 {[%emt 0:00:22]} 2. Nf3 {[%emt 0:00:10]} Nc6 {[%emt 0:00:15]} 3. Bc4 {[%emt 0:00:33]} Nf6 {[%emt 0:00:36]} 4. d3 {[%emt 0:00:30]} Bc5 {[%emt 0:00:22]} 5. c3 {[%emt 0:00:49]} d6 {[%emt 0:00:28]} 6. Nbd2 {[%emt 0:00:14]} Bb6 {[%emt 0:00:54]} 7. b4 {[%emt 0:00:43]} Ne7 {[%emt 0:00:34]} 8. Nf1 {[%emt 0:01:29]} Ng6 {[%emt 0:00:44]} 9. Ng3 {[%emt 0:00:12]} O-O {[%emt 0:00:52]} 10. O-O {[%emt 0:00:22]} c6 {[%emt 0:00:43]} 11. Bb3 {[%emt 0:02:25]} h6 {[%emt 0:04:56]} 12. h3 {[%emt 0:01:17]} Re8 {[%emt 0:01:06]} 13. Re1 {[%emt 0:01:04]} Qc7 {[%emt 0:05:27]} 14. Be3 {[%emt 0:03:58]} d5 {[%emt 0:03:11]} 15. exd5 {[%emt 0:02:04]} cxd5 {[%emt 0:02:44]} 16. Ba4 {[%emt 0:00:24]} Bd7 {[%emt 0:01:01]} 17. Bxd7 {[%emt 0:00:24]} Nxd7 {[%emt 0:01:13]} 18. Qb3 {[%emt 0:01:43]} Bxe3 {[%emt 0:03:33]} 19. Rxe3 {[%emt 0:01:21]} Nf4 {[%emt 0:02:58]} 20. Rae1 {[%emt 0:03:10]} Qd6 {[%emt 0:02:09]} 21. c4 {[%emt 0:06:04]} d4 {[%emt 0:02:59]} 22. Re4 {[%emt 0:01:09]} b6 {[%emt 0:02:35]} 23. Nxd4 {[%emt 0:00:49]} Nf6 {[%emt 0:01:29]} 24. Nb5 {[%emt 0:02:29]} Qxd3 {[%emt 0:00:40]} 25. Rxe5 {[%emt 0:04:17]} Rxe5 {[%emt 0:00:21]} 26. Rxe5 {[%emt 0:00:54]} Qd2 {[%emt 0:01:08]} 27. Qf3 {[%emt 0:02:51]} Rd8 {[%emt 0:01:26]} 28. Qe3 {[%emt 0:06:18]} Qd1+ {[%emt 0:00:48]} 29. Kh2 {[%emt 0:01:30]} Ng6 {[%emt 0:02:05]} 30. Rf5 {[%emt 0:01:27]} Nh4 {[%emt 0:00:18]} 31. Rf4 {[%emt 0:01:13]} Ng6 {[%emt 0:00:48]} 32. Rd4 {[%emt 0:00:44]} Rxd4 {[%emt 0:00:23]} 33. Qxd4 {[%emt 0:00:05]} Qc2 {[%emt 0:00:27]} 34. Nxa7 {[%emt 0:00:48]} Qxa2 {[%emt 0:00:18]} 35. Qxb6 {[%emt 0:00:40]} Qxc4 {[%emt 0:00:28]} 36. Qc5 {[%emt 0:00:08]} Qa2 {[%emt 0:01:15]} 37. b5 {[%emt 0:00:18]} Nd7 {[%emt 0:00:26]} 38. Qc7 {[%emt 0:01:40]} Ndf8 {[%emt 0:02:14]} 39. b6 {[%emt 0:01:42]} Qxf2 {[%emt 0:00:12]} 40. b7 {[%emt 0:00:55]} Nf4 {[%emt 0:00:08]} 41. Qc6 {[%emt 0:17:59]} Qxa7 {[%emt 0:16:08]} 42. Ne4 {[%emt 0:00:49]} Ne2 {[%emt 0:00:28]} 43. Nc5 {[%emt 0:04:53]} Qa1 {[%emt 0:00:31]} 44. h4 {[%emt 0:00:23]} Qe5+ {[%emt 0:01:15]} 45. Kh1 {[%emt 0:00:21]} Qf4 {[%emt 0:01:11]} 46. Qf3 {[%emt 0:04:32]} Qxh4+ {[%emt 0:00:06]} 0-1

[Event "GER-ch Youth-U10 2022"]
[Site "Willingen"]
[Date "2022.06.06"]
[Round "4.4"]
[White "Shen, Tingrui"]
[Black "Junge, Mattheo Gabriel"]
[Result "1/2-1/2"]
[ECO "E60"]
[WhiteElo "1621"]
[BlackElo "1132"]
[Annotator "NA RC COMBH"]
[PlyCount "110"]
[EventDate "2022.06.05"]
[EventType "swiss"]
[EventRounds "11"]
[EventCountry "GER"]
[SourceTitle "playchess.com"]
[Source "ChessBase"]
[SourceQuality "1"]
[TimeControl "40/4500+30:900+30"]

1. Nf3 {[%emt 0:00:10]} Nf6 {[%emt 0:00:43]} 2. g3 {[%emt 0:00:58]} g6 {[%emt 0:01:10]} 3. d4 {[%emt 0:01:13]} Bg7 {[%emt 0:00:11]} 4. Bg2 {[%emt 0:02:34]} O-O {[%emt 0:00:34]} 5. O-O {[%emt 0:01:30]} d6 {[%emt 0:03:59]} 6. c4 {[%emt 0:03:01]} c6 {[%emt 0:03:46]} 7. b3 {[%emt 0:03:06]} a6 {[%emt 0:03:15]} 8. Bb2 {[%emt 0:02:51]} Bf5 {[%emt 0:05:43]} 9. Nbd2 {[%emt 0:02:12]} a5 {[%emt 0:00:43]} 10. Re1 {[%emt 0:04:27]} d5 {[%emt 0:03:26]} 11. Nh4 {[%emt 0:08:23]} Na6 {[%emt 0:12:07]} 12. Nxf5 {[%emt 0:01:29]} gxf5 {[%emt 0:00:07]} 13. Qc2 {[%emt 0:02:41]} e6 {[%emt 0:00:52]} 14. a3 {[%emt 0:04:34]} Ne4 {[%emt 0:06:29]} 15. Rad1 {[%emt 0:04:14]} Qg5 {[%emt 0:02:51]} 16. Bc1 {[%emt 0:07:21]} Qg6 {[%emt 0:04:29]} 17. Nf1 {[%emt 0:05:29]} Rac8 {[%emt 0:04:04]} 18. f3 {[%emt 0:03:13]} Nd6 {[%emt 0:00:59]} 19. Bf4 {[%emt 0:02:00]} Rfd8 {[%emt 0:00:57]} 20. Bxd6 {[%emt 0:09:49]} Rxd6 {[%emt 0:00:09]} 21. c5 {[%emt 0:00:24]} Rdd8 {[%emt 0:01:51]} 22. f4 {[%emt 0:01:41]} Nc7 {[%emt 0:00:36]} 23. Qd2 {[%emt 0:02:22]} Nb5 {[%emt 0:00:41]} 24. e3 {[%emt 0:00:33]} Nxa3 {[%emt 0:00:50]} 25. Ra1 {[%emt 0:00:25]} Nb5 {[%emt 0:00:25]} 26. Rxa5 {[%emt 0:01:29]} h5 {[%emt 0:01:42]} 27. Qf2 {[%emt 0:01:26]} Bf6 {[%emt 0:01:59]} 28. Rea1 {[%emt 0:02:51]} Kg7 {[%emt 0:00:54]} 29. h4 {[%emt 0:01:40]} Kh6 {[%emt 0:00:56]} 30. R1a2 {[%emt 0:01:42]} Nc3 {[%emt 0:00:54]} 31. Rc2 {[%emt 0:00:37]} Ne4 {[%emt 0:00:07]} 32. Bxe4 {[%emt 0:00:19]} dxe4 {[%emt 0:00:39]} 33. Kh2 {[%emt 0:00:19]} Rg8 {[%emt 0:01:25]} 34. b4 {[%emt 0:00:54]} Rg7 {[%emt 0:02:01]} 35. b5 {[%emt 0:00:56]} Be7 {[%emt 0:00:59]} 36. Ra7 {[%emt 0:00:58]} f6 {[%emt 0:01:44]} 37. Rxb7 {[%emt 0:00:25]} cxb5 {[%emt 0:00:39]} 38. Rxb5 {[%emt 0:00:22]} Bd8 {[%emt 0:00:17]} 39. Rcb2 {[%emt 0:00:18]} Bc7 {[%emt 0:00:30]} 40. Rb7 {[%emt 0:00:14]} Rgg8 {[%emt 0:01:31]} 41. Ra2 {[%emt 0:15:29]} Rgd8 {[%emt 0:17:33]} 42. Ra6 {[%emt 0:00:55]} Re8 {[%emt 0:00:36]} 43. Qe2 {[%emt 0:01:48]} Bb8 {[%emt 0:02:42]} 44. Rbb6 {[%emt 0:01:50]} Re7 {[%emt 0:01:56]} 45. Rxe6 {[%emt 0:00:00]} Rxe6 {[%emt 0:00:00]} 46. Rxe6 {[%emt 0:00:00]} Rc7 {[%emt 0:00:00]} 47. Ra6 {[%emt 0:00:00]} Qf7 {[%emt 0:00:00]} 48. Qa2 {[%emt 0:00:00]} Qg7 {[%emt 0:00:00]} 49. Ra8 {[%emt 0:00:00]} Rb7 {[%emt 0:00:00]} 50. d5 {[%emt 0:00:00]} Qg4 {[%emt 0:00:00]} 51. Ra6 {[%emt 0:00:00]} Qd1 {[%emt 0:00:00]} 52. Qf2 {[%emt 0:00:00]} Qxd5 {[%emt 0:00:00]} 53. Rxf6+ {[%emt 0:00:00]} Kg7 {[%emt 0:00:00]} 54. Rb6 {[%emt 0:00:00]} Rxb6 {[%emt 0:00:00]} 55. cxb6 {[%emt 0:00:00]} Qb5 {[%emt 0:00:00]} 1/2-1/2

[Event "GER-ch Youth-U10 2022"]
[Site "Willingen"]
[Date "2022.06.06"]
[Round "4.5"]
[White "Rohatgi, Kushagra"]
[Black "Peglau, Paul David"]
[Result "1-0"]
[ECO "B13"]
[WhiteElo "1222"]
[BlackElo "1623"]
[Annotator "NA RC COMBH"]
[PlyCount "55"]
[EventDate "2022.06.05"]
[EventType "swiss"]
[EventRounds "11"]
[EventCountry "GER"]
[SourceTitle "playchess.com"]
[Source "ChessBase"]
[SourceQuality "1"]
[TimeControl "40/4500+30:900+30"]

1. e4 {[%emt 0:00:05]} c6 {[%emt 0:00:18]} 2. d4 {[%emt 0:00:13]} d5 {[%emt 0:00:01]} 3. exd5 {[%emt 0:00:16]} cxd5 {[%emt 0:00:02]} 4. Bd3 {[%emt 0:00:10]} Nc6 {[%emt 0:00:07]} 5. c3 {[%emt 0:00:17]} Nf6 {[%emt 0:00:05]} 6. Bf4 {[%emt 0:00:36]} Bg4 {[%emt 0:00:23]} 7. Qb3 {[%emt 0:00:29]} Qd7 {[%emt 0:01:02]} 8. Nd2 {[%emt 0:00:46]} e6 {[%emt 0:00:58]} 9. Ngf3 {[%emt 0:01:56]} Be7 {[%emt 0:01:45]} 10. Ne5 {[%emt 0:04:55]} Nxe5 {[%emt 0:01:37]} 11. dxe5 {[%emt 0:01:59]} Qc7 {[%emt 0:04:39]} 12. exf6 {[%emt 0:04:18]} Qxf4 {[%emt 0:00:23]} 13. Qb5+ {[%emt 0:01:31]} Kf8 {[%emt 0:00:39]} 14. fxe7+ {[%emt 0:00:41]} Kxe7 {[%emt 0:00:02]} 15. Qb4+ {[%emt 0:00:55]} Qxb4 {[%emt 0:00:20]} 16. cxb4 {[%emt 0:00:18]} Rac8 {[%emt 0:00:24]} 17. O-O {[%emt 0:03:00]} Rc6 {[%emt 0:00:49]} 18. h3 {[%emt 0:05:03]} Bh5 {[%emt 0:00:09]} 19. g4 {[%emt 0:02:15]} Bg6 {[%emt 0:00:00]} 20. Bxg6 {[%emt 0:03:20]} hxg6 {[%emt 0:00:02]} 21. Rac1 {[%emt 0:02:16]} Rxh3 {[%emt 0:00:55]} 22. Rxc6 {[%emt 0:02:58]} bxc6 {[%emt 0:00:01]} 23. Rc1 {[%emt 0:02:00]} Kd6 {[%emt 0:00:47]} 24. Kg2 {[%emt 0:01:10]} Rd3 {[%emt 0:00:36]} 25. Nb3 {[%emt 0:01:53]} d4 {[%emt 0:01:36]} 26. Nc5 {[%emt 0:02:13]} Rd2 {[%emt 0:01:35]} 27. Ne4+ {[%emt 0:00:11]} Kd5 {[%emt 0:00:01]} 28. Nxd2 {[%emt 0:00:19]} 1-0

[Event "GER-ch Youth-U10 2022"]
[Site "Willingen"]
[Date "2022.06.06"]
[Round "4.6"]
[White "Rodriguez Klasen, Ennio"]
[Black "Rudolph, Simon"]
[Result "1-0"]
[ECO "A13"]
[WhiteElo "1315"]
[BlackElo "1361"]
[Annotator "NA RC COMBH"]
[PlyCount "95"]
[EventDate "2022.06.05"]
[EventType "swiss"]
[EventRounds "11"]
[EventCountry "GER"]
[SourceTitle "playchess.com"]
[Source "ChessBase"]
[SourceQuality "1"]
[TimeControl "40/4500+30:900+30"]

1. Nf3 {[%emt 0:00:01]} d5 {[%emt 0:00:08]} 2. g3 {[%emt 0:00:04]} c5 {[%emt 0:00:07]} 3. c4 {[%emt 0:00:32]} dxc4 {[%emt 0:00:25]} 4. Qa4+ {[%emt 0:00:53]} Bd7 {[%emt 0:00:36]} 5. Qxc4 {[%emt 0:00:24]} e6 {[%emt 0:00:16]} 6. Bg2 {[%emt 0:01:09]} Bc6 {[%emt 0:00:27]} 7. Nc3 {[%emt 0:01:19]} Nf6 {[%emt 0:00:56]} 8. O-O {[%emt 0:00:58]} Be7 {[%emt 0:00:17]} 9. Rd1 {[%emt 0:01:41]} O-O {[%emt 0:01:08]} 10. d4 {[%emt 0:00:51]} Qb6 {[%emt 0:01:16]} 11. Be3 {[%emt 0:15:32]} Na6 {[%emt 0:06:42]} 12. a3 {[%emt 0:07:01]} Rac8 {[%emt 0:05:03]} 13. dxc5 {[%emt 0:07:57]} Bxc5 {[%emt 0:01:18]} 14. Bxc5 {[%emt 0:01:10]} Nxc5 {[%emt 0:00:24]} 15. b4 {[%emt 0:02:30]} Na4 {[%emt 0:02:22]} 16. Qb3 {[%emt 0:16:25]} Nxc3 {[%emt 0:00:59]} 17. Qxc3 {[%emt 0:01:31]} Ba4 {[%emt 0:00:25]} 18. Qd4 {[%emt 0:03:50]} Bxd1 {[%emt 0:00:34]} 19. Qxb6 {[%emt 0:02:42]} axb6 {[%emt 0:00:19]} 20. Rxd1 {[%emt 0:00:07]} Rc2 {[%emt 0:00:35]} 21. Kf1 {[%emt 0:09:12]} Rfc8 {[%emt 0:00:32]} 22. Ke1 {[%emt 0:01:53]} Rc1 {[%emt 0:00:25]} 23. Ne5 {[%emt 0:00:49]} Rxd1+ {[%emt 0:00:12]} 24. Kxd1 {[%emt 0:00:08]} Rc3 {[%emt 0:00:42]} 25. Bxb7 {[%emt 0:00:39]} Rxa3 {[%emt 0:00:20]} 26. b5 {[%emt 0:00:52]} Nd5 {[%emt 0:01:52]} 27. Bc6 {[%emt 0:02:07]} Rb3 {[%emt 0:00:38]} 28. Kc2 {[%emt 0:00:32]} Rc3+ {[%emt 0:01:22]} 29. Kd2 {[%emt 0:00:53]} Ra3 {[%emt 0:00:34]} 30. Nc4 {[%emt 0:02:23]} Ra2+ {[%emt 0:00:57]} 31. Kd3 {[%emt 0:01:07]} Nb4+ {[%emt 0:00:20]} 32. Kc3 {[%emt 0:00:26]} Nxc6 {[%emt 0:00:14]} 33. bxc6 {[%emt 0:00:11]} Ra7 {[%emt 0:00:17]} 34. Kb4 {[%emt 0:00:18]} Kf8 {[%emt 0:00:32]} 35. Kb5 {[%emt 0:00:05]} Ke7 {[%emt 0:00:23]} 36. Kxb6 {[%emt 0:00:07]} Ra8 {[%emt 0:00:46]} 37. Kb7 {[%emt 0:00:08]} Re8 {[%emt 0:00:47]} 38. c7 {[%emt 0:00:14]} Kd7 {[%emt 0:00:41]} 39. Nb6+ {[%emt 0:01:06]} Kd6 {[%emt 0:00:46]} 40. c8=Q {[%emt 0:00:12]} Rxc8 {[%emt 0:00:11]} 41. Kxc8 {[%emt 0:16:18]} Kc5 {[%emt 0:15:10]} 42. Kd7 {[%emt 0:02:31]} Kd4 {[%emt 0:00:49]} 43. Ke7 {[%emt 0:00:35]} Kc3 {[%emt 0:00:19]} 44. Kxf7 {[%emt 0:00:33]} Kd2 {[%emt 0:00:07]} 45. e4 {[%emt 0:00:32]} Ke2 {[%emt 0:00:07]} 46. Kxe6 {[%emt 0:00:09]} Kxf2 {[%emt 0:00:09]} 47. Kf7 {[%emt 0:00:24]} Kg2 {[%emt 0:00:10]} 48. Kxg7 {[%emt 0:00:39]} 1-0

[Event "GER-ch Youth-U10 2022"]
[Site "Willingen"]
[Date "2022.06.06"]
[Round "4.9"]
[White "Svanidze, Alexander"]
[Black "Rau, Eduard"]
[Result "0-1"]
[ECO "C50"]
[WhiteElo "1348"]
[BlackElo "1406"]
[Annotator "NA RC COMBH"]
[PlyCount "34"]
[EventDate "2022.06.05"]
[EventType "swiss"]
[EventRounds "11"]
[EventCountry "GER"]
[SourceTitle "playchess.com"]
[Source "ChessBase"]
[SourceQuality "1"]
[TimeControl "40/4500+30:900+30"]

1. e4 {[%emt 0:00:03]} e5 {[%emt 0:00:01]} 2. Nf3 {[%emt 0:00:05]} Nc6 {[%emt 0:00:14]} 3. Bc4 {[%emt 0:00:06]} Nf6 {[%emt 0:00:04]} 4. d3 {[%emt 0:00:06]} Bc5 {[%emt 0:00:19]} 5. Nc3 {[%emt 0:00:26]} d6 {[%emt 0:00:28]} 6. Bg5 {[%emt 0:00:26]} h6 {[%emt 0:00:07]} 7. Bh4 {[%emt 0:00:04]} Be6 {[%emt 0:00:07]} 8. Bxe6 {[%emt 0:00:29]} fxe6 {[%emt 0:00:04]} 9. O-O {[%emt 0:00:08]} Qe7 {[%emt 0:01:10]} 10. Qd2 {[%emt 0:00:23]} g5 {[%emt 0:00:29]} 11. Bg3 {[%emt 0:00:07]} O-O-O {[%emt 0:00:21]} 12. Rfb1 {[%emt 0:00:48]} Nh5 {[%emt 0:02:53]} 13. a3 {[%emt 0:01:37]} Nxg3 {[%emt 0:01:24]} 14. hxg3 {[%emt 0:00:18]} Rdf8 {[%emt 0:00:24]} 15. b4 {[%emt 0:00:20]} Bb6 {[%emt 0:00:11]} 16. a4 {[%emt 0:00:38]} Nd4 {[%emt 0:02:02]} 17. Nh2 {[%emt 0:02:06]} Rxf2 {[%emt 0:05:29]} 0-1

[Event "GER-ch Youth-U10 2022"]
[Site "Willingen"]
[Date "2022.06.06"]
[Round "4.10"]
[White "Fischermann, Simon"]
[Black "Chua, Daniel James"]
[Result "1-0"]
[ECO "C13"]
[WhiteElo "1344"]
[BlackElo "1314"]
[Annotator "NA RC COMBH"]
[PlyCount "102"]
[EventDate "2022.06.05"]
[EventType "swiss"]
[EventRounds "11"]
[EventCountry "GER"]
[SourceTitle "playchess.com"]
[Source "ChessBase"]
[SourceQuality "1"]
[TimeControl "40/4500+30:900+30"]

1. d4 {[%emt 0:00:27]} Nf6 {[%emt 0:00:01]} 2. Nc3 {[%emt 0:00:16]} d5 {[%emt 0:00:07]} 3. e3 {[%emt 0:00:10]} e6 {[%emt 0:01:22]} 4. Bd3 {[%emt 0:00:15]} Bd6 {[%emt 0:01:37]} 5. e4 {[%emt 0:00:34]} dxe4 {[%emt 0:01:09]} 6. Nxe4 {[%emt 0:00:25]} Nc6 {[%emt 0:05:04]} 7. Nf3 {[%emt 0:00:54]} O-O {[%emt 0:03:11]} 8. Bg5 {[%emt 0:01:18]} Be7 {[%emt 0:01:35]} 9. Nxf6+ {[%emt 0:00:08]} Bxf6 {[%emt 0:00:05]} 10. Bxf6 {[%emt 0:00:09]} Qxf6 {[%emt 0:00:07]} 11. O-O {[%emt 0:00:07]} Rd8 {[%emt 0:03:53]} 12. c3 {[%emt 0:00:36]} Bd7 {[%emt 0:01:17]} 13. Qc2 {[%emt 0:00:13]} g6 {[%emt 0:00:52]} 14. Rfe1 {[%emt 0:01:15]} Ne7 {[%emt 0:07:41]} 15. Ne5 {[%emt 0:02:21]} Nd5 {[%emt 0:04:21]} 16. Be4 {[%emt 0:03:27]} Qg5 {[%emt 0:08:23]} 17. Qb3 {[%emt 0:04:29]} Nf4 {[%emt 0:06:21]} 18. g3 {[%emt 0:00:38]} Nh3+ {[%emt 0:04:25]} 19. Kg2 {[%emt 0:00:14]} Nf4+ {[%emt 0:00:07]} 20. Kf1 {[%emt 0:01:01]} Nh3 {[%emt 0:02:54]} 21. Nxd7 {[%emt 0:00:42]} Rxd7 {[%emt 0:00:15]} 22. Qxb7 {[%emt 0:00:13]} Rad8 {[%emt 0:00:22]} 23. Qxa7 {[%emt 0:01:08]} Qf6 {[%emt 0:04:23]} 24. Re2 {[%emt 0:00:38]} Ng5 {[%emt 0:00:16]} 25. h4 {[%emt 0:00:28]} Nxe4 {[%emt 0:00:28]} 26. Rxe4 {[%emt 0:00:09]} Qf3 {[%emt 0:00:14]} 27. Ree1 {[%emt 0:00:30]} Rd5 {[%emt 0:05:44]} 28. Qxc7 {[%emt 0:00:24]} R8d7 {[%emt 0:01:21]} 29. Qf4 {[%emt 0:01:01]} Qd3+ {[%emt 0:01:10]} 30. Kg1 {[%emt 0:00:37]} Rf5 {[%emt 0:00:00]} 31. Qe3 {[%emt 0:00:08]} Qb5 {[%emt 0:01:05]} 32. Qe2 {[%emt 0:00:25]} Qd5 {[%emt 0:01:10]} 33. a4 {[%emt 0:00:06]} Rh5 {[%emt 0:00:44]} 34. a5 {[%emt 0:00:18]} Kg7 {[%emt 0:04:56]} 35. a6 {[%emt 0:00:45]} Ra7 {[%emt 0:06:40]} 36. b4 {[%emt 0:02:35]} Kh6 {[%emt 0:04:38]} 37. Qe4 {[%emt 0:01:20]} Qb5 {[%emt 0:03:42]} 38. Ra5 {[%emt 0:01:32]} Qd7 {[%emt 0:02:16]} 39. Rxh5+ {[%emt 0:00:36]} gxh5 {[%emt 0:00:32]} 40. Qf4+ {[%emt 0:00:19]} Kg7 {[%emt 0:00:30]} 41. Qg5+ {[%emt 0:15:30]} Kf8 {[%emt 0:15:31]} 42. b5 {[%emt 0:00:05]} Qc7 {[%emt 0:00:30]} 43. Qc5+ {[%emt 0:00:17]} Qxc5 {[%emt 0:00:30]} 44. dxc5 {[%emt 0:00:15]} Ke7 {[%emt 0:00:30]} 45. Rd1 {[%emt 0:00:14]} f6 {[%emt 0:00:00]} 46. c6 {[%emt 0:00:00]} Ra8 {[%emt 0:00:00]} 47. c7 {[%emt 0:00:00]} Rc8 {[%emt 0:00:00]} 48. b6 {[%emt 0:00:00]} e5 {[%emt 0:01:20]} 49. b7 {[%emt 0:00:00]} Rxc7 {[%emt 0:01:10]} 50. b8=Q {[%emt 0:00:00]} Rc6 {[%emt 0:00:30]} 51. Qb7+ {[%emt 0:00:00]} Ke6 {[%emt 0:00:30]} 1-0

[Event "GER-ch Youth-U10 2022"]
[Site "Willingen"]
[Date "2022.06.06"]
[Round "4.11"]
[White "Campora, Daniel H."]
[Black "Moskalenko, Michael"]
[Result "1-0"]
[ECO "D00"]
[WhiteElo "2397"]
[BlackElo "1266"]
[Annotator "TA"]
[PlyCount "61"]
[EventDate "2022.06.05"]
[EventType "swiss"]
[EventRounds "11"]
[EventCountry "GER"]
[SourceTitle "playchess.com"]
[Source "ChessBase"]
[SourceQuality "1"]
[TimeControl "40/4500+30:900+30"]

{[%evp 12,61,0,0,0,7,2,4,20,23,54,68,94,93,93,97,101,101,337,269,275,282,272,275,452,456,577,519,503,279,314,326,309,323,307,197,204,210,208,199,476,489,462,466,524,536,531,485,517,503,478,446]} 1. d4 {[%emt 0:00:01]} d5 {[%emt 0:00:04]} 2. e3 {[%emt 0:00:19]} e6 {[%emt 0:00:23]} 3. Bd3 {[%emt 0:00:28]} c5 {[%emt 0:00:25]} 4. c3 {[%emt 0:00:18]} Nc6 {[%emt 0:00:46]} 5. Nd2 {[%emt 0:00:37]} Nf6 {[%emt 0:00:16]} 6. f4 {[%emt 0:00:29]} Be7 {[%emt 0:00:42]} 7. Ngf3 {[%emt 0:00:35]} b6 {[%emt 0:03:52] D00: 1 d4 d5: Unusual lines.} 8. O-O {[%emt 0:01:05]} Bb7 {[%emt 0:01:26]} 9. Ne5 {[%emt 0:01:21]} c4 {[%emt 0:01:51] The position is equal.} 10. Bc2 {[%emt 0:00:29]} Qc7 {[%emt 0:01:27]} 11. Qe2 {[%emt 0:00:54] [#]} h5 $146 {[%emt 0:07:21]} ({Predecessor:} 11... Bd6 12. e4 O-O-O 13. Nxc6 Qxc6 14. e5 {1-0 (14) Zorin,Y (1857)-Kaliamin,A (1667) Cheliabinsk 2009}) 12. e4 {[%emt 0:03:32] White is more active.} dxe4 {[%emt 0:03:27]} 13. Nxe4 {[%emt 0:00:23]} Nxe5 {[%emt 0:08:13]} 14. fxe5 {[%emt 0:00:14]} ({But not} 14. dxe5 $6 Nxe4 15. Bxe4 O-O-O $11) 14... Nd5 {[%emt 0:06:40] [#]} (14... Nxe4 $16 {was called for.} 15. Bxe4 Bxe4 16. Qxe4 Rc8) 15. Ba4+ {[%emt 0:03:09]} Bc6 {[%emt 0:01:22]} 16. Qxc4 {[%emt 0:00:37]} Rc8 {[%emt 0:01:32]} 17. Bg5 {[%emt 0:07:43]} Bf8 {[%emt 0:01:16]} (17... O-O 18. Bxc6 Qxc6) 18. Rf3 $18 {[%emt 0:04:43] [#] Black must now prevent Raf1.} Qd7 {[%emt 0:07:11]} 19. Bxc6 {[%emt 0:00:37]} Qxc6 {[%emt 0:01:34]} 20. Qxc6+ {[%emt 0:00:35]} Rxc6 {[%emt 0:02:08]} 21. Raf1 {[%emt 0:02:16]} Rc7 {[%emt 0:01:36]} 22. a3 {[%emt 0:08:16]} b5 {[%emt 0:02:50]} 23. Nd2 {[%emt 0:03:11]} Be7 {[%emt 0:07:11]} 24. Bxe7 {[%emt 0:00:24]} Rxe7 {[%emt 0:00:09]} 25. Ne4 {[%emt 0:01:29]} a6 $2 {[%emt 0:07:05]} (25... O-O {was necessary.} 26. Nd6 a6) 26. Nd6+ {[%emt 0:00:19] White is clearly winning.} Kd7 {[%emt 0:01:40]} 27. Rxf7 {[%emt 0:00:46]} Rg8 {[%emt 0:03:41]} 28. Rxe7+ {[%emt 0:01:19]} Kxe7 {[%emt 0:01:18]} 29. Rf7+ {[%emt 0:00:39]} Kd8 {[%emt 0:00:06]} 30. Kf2 {[%emt 0:00:43]} Ne7 {[%emt 0:01:36]} 31. Ke3 {[%emt 0:01:30] Black got outplayed after the opening.  Weighted Error Value: White=0.19 (very precise) /Black=0.65} 1-0

[Event "GER-ch Youth-U10 2022"]
[Site "Willingen"]
[Date "2022.06.06"]
[Round "4.12"]
[White "Heitmann, Erik"]
[Black "Allen, Phillipp"]
[Result "0-1"]
[ECO "A85"]
[WhiteElo "1287"]
[BlackElo "1467"]
[Annotator "NA RC COMBH"]
[PlyCount "106"]
[EventDate "2022.06.05"]
[EventType "swiss"]
[EventRounds "11"]
[EventCountry "GER"]
[SourceTitle "playchess.com"]
[Source "ChessBase"]
[SourceQuality "1"]
[TimeControl "40/4500+30:900+30"]

1. d4 {[%emt 0:00:03]} d5 {[%emt 0:00:04]} 2. c4 {[%emt 0:02:22]} e6 {[%emt 0:00:15]} 3. Nc3 {[%emt 0:00:11]} c6 {[%emt 0:00:07]} 4. Nf3 {[%emt 0:00:15]} f5 {[%emt 0:00:10]} 5. Bg5 {[%emt 0:00:20]} Nf6 {[%emt 0:00:45]} 6. e3 {[%emt 0:00:17]} h6 {[%emt 0:00:17]} 7. Bxf6 {[%emt 0:00:33]} Qxf6 {[%emt 0:00:18]} 8. cxd5 {[%emt 0:00:25]} exd5 {[%emt 0:00:07]} 9. Bd3 {[%emt 0:01:08]} Bd6 {[%emt 0:00:38]} 10. Qe2 {[%emt 0:00:40]} O-O {[%emt 0:00:13]} 11. h4 {[%emt 0:01:10]} Be6 {[%emt 0:01:17]} 12. O-O-O {[%emt 0:04:09]} Nd7 {[%emt 0:00:44]} 13. Rhe1 {[%emt 0:01:02]} b5 {[%emt 0:01:01]} 14. Kb1 {[%emt 0:01:48]} Nb6 {[%emt 0:00:27]} 15. b3 {[%emt 0:00:31]} a5 {[%emt 0:00:43]} 16. Rc1 {[%emt 0:04:20]} Bd7 {[%emt 0:01:34]} 17. g3 {[%emt 0:02:12]} a4 {[%emt 0:02:59]} 18. Nd2 {[%emt 0:01:07]} axb3 {[%emt 0:02:10]} 19. Nxb3 {[%emt 0:00:46]} Nc4 {[%emt 0:00:18]} 20. Bxc4 {[%emt 0:03:03]} bxc4 {[%emt 0:00:18]} 21. Na1 {[%emt 0:01:43]} Ba3 {[%emt 0:00:27]} 22. Kc2 {[%emt 0:09:12]} Bxc1 {[%emt 0:01:56]} 23. Rxc1 {[%emt 0:01:12]} f4 {[%emt 0:00:26]} 24. exf4 {[%emt 0:01:39]} Bf5+ {[%emt 0:01:32]} 25. Kd1 {[%emt 0:00:39]} Qxd4+ {[%emt 0:00:27]} 26. Qd2 {[%emt 0:00:25]} Bg4+ {[%emt 0:00:13]} 27. Kc2 {[%emt 0:00:13]} Qxd2+ {[%emt 0:01:20]} 28. Kxd2 {[%emt 0:02:42]} d4 {[%emt 0:00:16]} 29. Ne2 {[%emt 0:00:36]} Rxa2+ {[%emt 0:00:13]} 30. Nc2 {[%emt 0:00:13]} Bxe2 {[%emt 0:00:20]} 31. Kxe2 {[%emt 0:00:07]} d3+ {[%emt 0:00:05]} 32. Kd2 {[%emt 0:00:11]} Rxc2+ {[%emt 0:00:04]} 33. Rxc2 {[%emt 0:00:08]} dxc2 {[%emt 0:00:15]} 34. Kxc2 {[%emt 0:00:03]} Rd8 {[%emt 0:00:06]} 35. Kc3 {[%emt 0:00:14]} Rd5 {[%emt 0:00:06]} 36. Kxc4 {[%emt 0:00:14]} Kf7 {[%emt 0:00:03]} 37. g4 {[%emt 0:00:13]} h5 {[%emt 0:00:14]} 38. g5 {[%emt 0:00:27]} Kg6 {[%emt 0:00:09]} 39. f3 {[%emt 0:00:11]} Kf5 {[%emt 0:00:03]} 40. Kc3 {[%emt 0:00:11]} Kxf4 {[%emt 0:00:05]} 41. Kc4 {[%emt 0:15:42]} Kxf3 {[%emt 0:15:08]} 42. Kc3 {[%emt 0:00:07]} Kg4 {[%emt 0:00:05]} 43. Kc4 {[%emt 0:00:10]} Kxh4 {[%emt 0:00:06]} 44. g6 {[%emt 0:00:09]} Kg5 {[%emt 0:00:04]} 45. Kc3 {[%emt 0:00:10]} h4 {[%emt 0:00:05]} 46. Kc4 {[%emt 0:00:12]} Kxg6 {[%emt 0:00:06]} 47. Kc3 {[%emt 0:00:07]} h3 {[%emt 0:00:09]} 48. Kc4 {[%emt 0:00:04]} h2 {[%emt 0:00:04]} 49. Kc3 {[%emt 0:00:09]} h1=R {[%emt 0:00:05]} 50. Kc4 {[%emt 0:00:10]} Rc1+ {[%emt 0:00:08]} 51. Kb3 {[%emt 0:00:12]} Rb5+ {[%emt 0:00:04]} 52. Ka2 {[%emt 0:00:19]} Rd1 {[%emt 0:00:04]} 53. Ka3 {[%emt 0:00:12]} Rd8 {[%emt 0:00:04]} 0-1